Workbook

Sheet Cover
A9: Disclaimer
A10: The following presentation is a material to support shareholders in calculating the holding company some of the parts and discount obtained in Cosan S.A. (“Cosan” or “Company”).
A12: All information contained in this document is public, as stated herein and in other public documents disclosed by the Company, especially its quarterly and annual audited financial statements. This material is subject to revision and adjustments without prior notice and should be read and analyzed considering the base date of the information used, pursuant to the terms disclosed by Cosan.
A14: By preparing this spreadsheet, neither the Company, nor any of its affiliates, executives, officers, employees, agents, representatives and third parties acting on behalf of the Company, assume any obligation to grant access to or publish any additional information, update this tool, or correct inaccuracies. The Company takes no responsibility for the use of this material in full or in part in a manner diverging from that shown below. Additionally, Cosan takes no responsibility for changes or interventions made by third parties, nor for reports, analyses, newspaper articles, publications or forecasts prepared by third parties, based on this material.
A16: The material does not exempt investors or shareholders from the need to seek their own advisors and carefully read public documents and information disclosed by Cosan, so they can independently conduct their own analyses, evaluation and investigation of Cosan, its activities and financial situation when making their investment decisions.
A18: The material presented does not consist of a declaration or guarantee with expectation of future income and/or payment and/or return on any amount invested.

Sheet Guide and Assumptions
B6: Guide and Assumptions
B9: Guide | D9: Inputs
B11: How to use this tool? | D11: Entries and base values
B13: All yellow cells are editable, allowing users to determine the valuation method for each asset composing COSAN’s portfolio. Once the valuation method for each asset/debt has been chosen, the value of the Sum of the Parts (SOTP) will be presented. This value may be compared to the market cap of CSAN3, indicating the implicit discount on CSAN3’s market price. | D13: All amounts presented herein consist of public information provided by the companies involved in this document. The information is updated on a quarterly basis in light of the disclosure of the financial statements of each company or other documents containing the data shown. The sources of each amount can be found in the “Sources” spreadsheet.
B15: Valuation methods | D15: Last Update: | E15: 2023-09-30
B17: When valuing assets, users may choose different valuation methods to determine the value of each company. | D17: Company | E17: Multiple EV/EBITDA | F17: Equity Value (@100%) (BRL bn) | G17: Total shares ex-treasury (bn) | H17: Shares held (bn) | I17: Equity Interest (%) ¹ | J17: Market price (BRL / Share) | K17: Bloomberg average price (BRL / Share) | L17: EBITDA LTM (BRL bn) | M17: EBITDA Guidance (BRL bn) | N17: Net Debt (BRL bn) | O17: Book Value (BRL bn) | P17: Installments payable (BRL bn)
B18: Market Capitalization: Number of shares held by Cosan in the asset, multiplied by the market price of the latest date available. | D18: Raízen | E18: 10 | F18: - | G18: =10352509484-26394646 -> 10326114838 | H18: 4557597117 | I18: =H18/G18 -> 0.441366108 | J18: 3.55516554 | K18: 5.771538462 | L18: 15855700000 | M18: 14000000000 | N18: 3.035002114e+10 | O18: 22802200000 | P18: -
B19: Target Price: Number of shares held by Cosan in the asset, multiplied by the Bloomberg average price for each of the assets, or with the target price inserted by the user. | D19: Rumo | E19: 11 | F19: - | G19: =1854868949-910479 -> 1853958470 | H19: 563296990 | I19: =H19/G19 -> 0.3038347402 | J19: 22.82 | K19: 28.00857143 | L19: 5348399988 | M19: 5550000000 | N19: 9459612623 | O19: 1.613509786e+10 | P19: -
B20: EV/EBITDA Guidance: Multiple used to determine the company’s valuation. In this option, the user must insert a fair multiple of the asset. This method uses the average EBITDA presented by the company as guidance, when the company publishes its guidance for the year, or its LTM EBITDA, when the company does not publish guidance. | D20: Vale | E20: 10 | F20: - | G20: 4302854300 | H20: 220366700 | I20: 0.05121407434 | J20: 67.58 | K20: 79.97555556 | L20: 82463000000 | M20: - | N20: 50121000000 | O20: 197667000000 | P20: -
B21: Book Value: value of the company's total assets minus it's total liabilities | D21: Compass | E21: 8.5 | F21: 28.6 | G21: - | H21: - | I21: 0.88 | J21: - | K21: - | L21: 4114961985 | M21: 4200000000 | N21: 3900184726 | O21: 8619544667 | P21: -
D22: Moove | E22: 8.5 | F22: 7.4 | G22: - | H22: - | I22: 0.7 | J22: - | K22: - | L22: 1129542873 | M22: - | N22: 1627393030 | O22: 2131901123 | P22: -
D23: Cosan Investimentos² | E23: - | F23: 6 | G23: - | H23: - | I23: 1 | J23: - | K23: - | L23: 2103717820 | M23: - | N23: -426880409.9 | O23: 5069694000 | P23: =-(296*2+202*4)*10^6 -> -1400000000
B24: Definitions
B25: Equity Value: estimated market cap presented in Cosan Day 2023 for non-listed companies. | D25: Corporate³ | E25: G&A Multiple | F25: G&A Input (BRL bn) | G25: Net Debt Input (BRL bn) | H25: Bloomberg average price (BRL / Share) | I25: G&A LTM (BRL bn) | J25: Net Debt (BRL bn) | K25: Market price (BRL / Share) | L25: Total shares ex-treasury (bn)
B26: Total shares ex-treasury: total shares excluding treasury shares. | D26: Cosan | E26: 10 | F26: 3 | G26: 14.45133211 | H26: 24.00846154 | I26: 349797382.6 | J26: 1.445133211e+10 | K26: 17.14 | L26: =1874070932-6570872 -> 1867500060
B27: Shares held: the total number of shares held by Cosan.
B28: Equity interest: the total number of shares held divided by the number of total shares ex-treasury. | D28: Collar Financing (4131) and Derivatives (BRL bn) | E28: Vale financing estructure (BRL bn) | F28: 4131 (BRL bn) | G28: Derivatives MTM (BRL bn)
B29: Market Price (BRL per share): closing price per share on the date of the last update of this spreadsheet. | D29: =8.4373-0.1203 -> 8.317 | E29: =F29+G29 -> 8316950766 | F29: 8437283992 | G29: -120333226.1
B30: Bloomberg Average Price (BRL per share): average target price of sell-side analysts covering the Company
B31: Market Capitalization: market price multiplied by the number of outstanding shares. | D31: Preferred shares updated redemption value (BRL bn)
B32: LTM EBITDA: adjusted EBITDA accumulated in the last twelve months. | D32: 8.8432
B33: Guidance EBITDA: average EBITDA presented by the company as guidance for the year, when applicable.
B34: Installments payable: outstanding amount to be paid for the increased share in the Land segment (Radar, Tellus and Janus). | D34: Vale Marketable Securities (BRL bn)
B35: Net Debt: a measure that considers loans and financing (gross debt) less cash and cash equivalents and marketable securities. | D35: 14906555909
B36: Book Value: the shareholders’ equity on the date of the last update.
B37: Collar Financing (4131) and Derivatives: a structure to finance the acquisition of minority interests in Vale + MTM of Collar derivatives. | D37: Note 1: For the purpose of calculating the sum of the parts, for Raízen and Compass, we consider the total percentage held by Cosan Nove and Cosan Dez, respectively, since the distribution of dividends is disproportionate to the percentage held by each shareholder of these companies and the updated value of the preferred shares, in case of a possible redemption by Cosan is considered as a liability.
B38: Preferred shares: equity structure used to raise proceeds for the acquisition of minority interests in Vale. The structure includes the issue of preferred shares from intermediary holding companies among Cosan and Compass/Raízen. | D38: Note 2: Cosan Investimentos considers the following assets: Land (Radar, Tellus and Janus); São Luís Port, in the state of Maranhão; and investments in the Climate Tech Fund and Ventures SPV, both managed by Fifth Wall.
B39: Vale Marketable Securities: market value of Vale shares held by Cosan. | D39: Note 3: The Corporate considers companies according to the structure shown in the Modeling Guide and the financial statements available on Cosan's IR website.

Sheet Guide - SOTP Indicative Model
B6: SOTP Indicatiove Model¹
B7: (BRL bn)
B9: Components
B11: Companies | F11: Valuation Method | G11: Implicit Multiple² | H11: Value (BRL bn)
B13: (a) | C13: Raízen | F13: EV/EBITDA Guidance | G13: =(H13/'Guide and Assumptions'!I18+'Guide and Assumptions'!N18)/IF(F13="EV/EBITDA Guidance",'Guide and Assumptions'!M18,'Guide and Assumptions'!L18) -> 10 | H13: =_xlfn.IFS($F13="Market Capitalization", 'Guide and Assumptions'!H18*'Guide and Assumptions'!J18, $F13="EV/EBITDA LTM", (('Guide and Assumptions'!E18*'Guide and Assumptions'!L18)-'Guide and Assumptions'!N18)*'Guide and Assumptions'!I18, $F13="EV/EBITDA Guidance", (('Guide and Assumptions'!E18*'Guide and Assumptions'!M18)-'Guide and Assumptions'!N18)*'Guide and Assumptions'!I18, $F13="Target Price", 'Guide and Assumptions'!H18*'Guide and Assumptions'!K18) -> 4.839578441e+10
B14: (b) | C14: Rumo | F14: EV/EBITDA Guidance | G14: =(H14/'Guide and Assumptions'!I19+'Guide and Assumptions'!N19)/IF(F14="EV/EBITDA Guidance",'Guide and Assumptions'!M19,'Guide and Assumptions'!L19) -> 11 | H14: =_xlfn.IFS($F14="Market Capitalization", 'Guide and Assumptions'!H19*'Guide and Assumptions'!J19, $F14="EV/EBITDA LTM", (('Guide and Assumptions'!E19*'Guide and Assumptions'!L19)-'Guide and Assumptions'!N19)*'Guide and Assumptions'!I19, $F14="EV/EBITDA Guidance", (('Guide and Assumptions'!E19*'Guide and Assumptions'!M19)-'Guide and Assumptions'!N19)*'Guide and Assumptions'!I19, $F14="Target Price", 'Guide and Assumptions'!H19*'Guide and Assumptions'!K19) -> 1.567495194e+10
B15: (c) | C15: Vale | F15: Target Price | G15: =(H15/'Guide and Assumptions'!I20+'Guide and Assumptions'!N20)/IF(F15="EV/EBITDA Guidance",'Guide and Assumptions'!L20,'Guide and Assumptions'!L20) -> 4.780861273 | H15: =_xlfn.IFS($F15="Market Capitalization", 'Guide and Assumptions'!H20*'Guide and Assumptions'!J20, $F15="EV/EBITDA LTM", (('Guide and Assumptions'!E20*'Guide and Assumptions'!L20)-'Guide and Assumptions'!N20)*'Guide and Assumptions'!I20, $F15="EV/EBITDA Guidance", (('Guide and Assumptions'!E20*'Guide and Assumptions'!M20)-'Guide and Assumptions'!N20)*'Guide and Assumptions'!I20, $F15="Target Price", 'Guide and Assumptions'!H20*'Guide and Assumptions'!K20) -> 1.762394926e+10
B16: (d) | C16: Compass | F16: EV/EBITDA Guidance | G16: =(H16/'Guide and Assumptions'!I21+'Guide and Assumptions'!N21)/IF(F16="EV/EBITDA Guidance",'Guide and Assumptions'!M21,'Guide and Assumptions'!L21) -> 8.5 | H16: =_xlfn.IFS($F16="Book Value", 'Guide and Assumptions'!O21, $F16="Equity Value", 'Guide and Assumptions'!F21*1000000000*'Guide and Assumptions'!I21,F16= "EV/EBITDA LTM", (('Guide and Assumptions'!E21*'Guide and Assumptions'!L21)-'Guide and Assumptions'!N21)*'Guide and Assumptions'!I21, F16= "EV/EBITDA Guidance", (('Guide and Assumptions'!E21*'Guide and Assumptions'!M21)-'Guide and Assumptions'!N21)*'Guide and Assumptions'!I21) -> 2.798383744e+10
B17: (e) | C17: Moove | F17: EV/EBITDA LTM | G17: =(H17/'Guide and Assumptions'!I22+'Guide and Assumptions'!N22)/IF(F17="EV/EBITDA Guidance",'Guide and Assumptions'!L22,'Guide and Assumptions'!L22) -> 8.5 | H17: =_xlfn.IFS($F17="Book Value", 'Guide and Assumptions'!O22, $F17="Equity Value", 'Guide and Assumptions'!F22*1000000000*'Guide and Assumptions'!I22,F17= "EV/EBITDA LTM", (('Guide and Assumptions'!E22*'Guide and Assumptions'!L22)-'Guide and Assumptions'!N22)*'Guide and Assumptions'!I22, F17= "EV/EBITDA Guidance", (('Guide and Assumptions'!E22*'Guide and Assumptions'!M22)-'Guide and Assumptions'!N22)*'Guide and Assumptions'!I22) -> 5581604973
B18: (f) | C18: Cosan Investimentos | F18: Equity Value | G18: =(H18/'Guide and Assumptions'!I23+'Guide and Assumptions'!N23 -'Guide and Assumptions'!P23 )/IF(F18="EV/EBITDA Guidance",'Guide and Assumptions'!L23,'Guide and Assumptions'!L23) -> 2.649176394 | H18: =_xlfn.IFS($F18="Book Value", 'Guide and Assumptions'!O23 + 'Guide and Assumptions'!P23, $F18="Equity Value", 'Guide and Assumptions'!F23*1000000000*'Guide and Assumptions'!I23 + 'Guide and Assumptions'!P23,F18= "EV/EBITDA LTM", (('Guide and Assumptions'!E23*'Guide and Assumptions'!L23)-'Guide and Assumptions'!N23)*'Guide and Assumptions'!I23, F18= "EV/EBITDA Guidance", (('Guide and Assumptions'!E23*'Guide and Assumptions'!M23)-'Guide and Assumptions'!N23)*'Guide and Assumptions'!I23) -> 4600000000
B21: Corporate | H21: =$H$11 -> Value (BRL bn)
B23: (g) | C23: G&A | F23: Multiple | H23: =-_xlfn.IFS(F23="Multiple", 'Guide and Assumptions'!E26*'Guide and Assumptions'!I26, F23="Input", 'Guide and Assumptions'!F26*1000000000) -> -3497973826
B24: (h) | C24: Net Debt (Corporate) | F24: Last Available | H24: =-_xlfn.IFS(F24="Last Available", 'Guide and Assumptions'!J26, F24="Input", 'Guide and Assumptions'!G26*1000000000) -> -1.445133211e+10
B26: Vale Struucture - Collar Financing and Prefered Shares | H26: =$H$11 -> Value (BRL bn)
B28: (i) | C28: Collar Financing (4131) and Derivatives | F28: Last Available | H28: =-_xlfn.IFS(F28="Last Available", 'Guide and Assumptions'!E29, F28="Input", 'Guide and Assumptions'!D29*1000000000) -> -8316950766
B29: (j) | C29: Preferred shares updated redemption value² | F29: Last Available | H29: =-_xlfn.IFS(F29="Last Available",'Guide and Assumptions'!D32*1000000000, F29="Input", 'Guide and Assumptions'!D32*1000000000) -> -8843200000
B31: Results
B33: (k) | C33: Some of the das Parts - SOTP (k = a+b+c+d+e+f-g-h-i-j) | H33: =SUM(H13:H18,H23:H24,H28:H29) -> 8.475067133e+10
B34: (l) | C34: CSAN3 Market Value | H34: ='Guide and Assumptions'!L26*'Guide and Assumptions'!K26 -> 3.200895103e+10
C35: CSAN3 Price per Share of the Some of the Parts - SOTP | H35: =H33/'Guide and Assumptions'!L26 -> 45.38188413
C36: CSAN3 target share price (BRL) | H36: ='Guide and Assumptions'!H26 -> 24.00846154
B37: (m) | C37: Holding Discount (m = k-l) | H37: =H34-H33 -> -5.27417203e+10
B38: (n) | C38: Holding Discount (%) (n=1-k/l) | H38: =1-H34/H33 -> 0.6223162539
B40: Note 1: For Raízen, Rumo and Compass, Guidance EBITDA is used when valuation is based on "EV/EBITDA Guidance."
B41: Note 2: Cosan has a call option which gives it the right to repurchase all preferred shares of Cosan Nove and Cosan Dez. The amount presented herein represents a potential updated early redemption, as explained in the earnings release and explanatory note 1.1 Equity Interest in Vale S.A. to 2Q23 Interim Financial Information.

Sheet Sources
B6: Surces
B9: Sources
B11: Raízen
B12: Total shares ex-treasury | D12: https://ri.raizen.com.br/en/about-raizen/shareholding-structure/
B13: Shares held | D13: https://ri.raizen.com.br/en/about-raizen/estrutura-societaria/
B14: Bloomberg average price | E14: Bloomberg
B15: EBITDA | D15: https://ri.raizen.com.br/en/financial-information/results-center/ | E15: Earnings Release
B16: EBITDA Guidance | D16: https://ri.raizen.com.br/en/financial-information/results-center/ | E16: Earnings Release 1Q24
B17: Net Debt | D17: https://ri.raizen.com.br/en/financial-information/results-center/ | E17: Financial Statements: ITR/DFP
B18: Book Value | D18: https://ri.raizen.com.br/en/financial-information/results-center/ | E18: Financial Statements: ITR/DFP
B20: Rumo
B21: Total shares ex-treasury | D21: https://ri.rumolog.com/en/corporate-governance/ownership-breakdown/
B22: Shares held | D22: https://ri.rumolog.com/en/corporate-governance/ownership-breakdown/
B23: Bloomberg average price | E23: Bloomberg
B24: EBITDA | D24: https://ri.rumolog.com/en/financial-information/results-center/ | E24: Earnings Release
B25: EBITDA Guidance | D25: https://ri.rumolog.com/en/disclosures-and-documents/notices-and-material-facts/ | E25: Material Fact - 2023 Guidance Update - 10 Aug
B26: Net Debt | D26: https://ri.rumolog.com/en/financial-information/results-center/ | E26: Financial Statements: ITR/DFP
B27: Book Value | D27: https://ri.rumolog.com/en/financial-information/results-center/ | E27: Financial Statements: ITR/DFP
B29: Vale
B30: Total shares ex-treasury | D30: https://www.vale.com/en/check-out-our-company
B31: Shares held | D31: https://www.cosan.com.br/en/financial-information/results-center/ | E31: Earnings Release
B32: Bloomberg average price | E32: Bloomberg
B33: EBITDA | D33: https://www.vale.com/en/announcements-results-presentations-and-reports | E33: Quarterly Report - BRL
B34: Net Debt | D34: https://www.vale.com/en/announcements-results-presentations-and-reports | E34: Financial Statements: ITR/DFP
B35: Book Value | D35: https://www.vale.com/en/announcements-results-presentations-and-reports | E35: Financial Statements: ITR/DFP
B37: Compass
B38: Shares held | D38: https://www.compassbr.com/en/corporate-governance/ownership-breakdown/
B39: EBITDA | D39: https://www.compassbr.com/en/disclosures-and-documents/results-center/ | E39: Earnings Release
B40: EBITDA Guidance | D40: https://www.compassbr.com/en/disclosures-and-documents/results-center/ | E40: Earnings Release
B41: Net Debt | D41: https://www.compassbr.com/en/disclosures-and-documents/results-center/ | E41: Earnings Release
B42: Book Value | D42: https://www.compassbr.com/en/disclosures-and-documents/results-center/ | E42: Financial Statements: ITR/DFP
B44: Moove
B45: Shares held | D45: https://www.cosan.com.br/en/financial-information/results-center/ | E45: Earnings Release
B46: EBITDA | D46: https://www.cosan.com.br/en/financial-information/results-center/ | E46: Spreadsheets per Segment
B47: Net Debt | D47: https://www.cosan.com.br/en/financial-information/results-center/ | E47: Spreadsheets per Segment
B48: Book Value | D48: https://www.cosan.com.br/en/financial-information/results-center/ | E48: Spreadsheets per Segment
B50: Cosan Investimentos
B51: Book Value | D51: https://www.cosan.com.br/en/financial-information/results-center/ | E51: Financial Statements: ITR/DFP
B52: Net Debt | D52: https://www.cosan.com.br/en/financial-information/results-center/ | E52: Financial Statements: ITR/DFP
B53: Installments payable | D53: https://api.mziq.com/mzfilemanager/v2/d/6aa68515-2422-4cc4-bafa-8870ccdfedb0/bc04a6de-cfd6-5ddc-b583-3de734fa2ca2?origin=2 | E53: Material Facts / Notices to the Market / Modeling Guide
B55: COSAN
B56: G&A | D56: https://www.cosan.com.br/en/financial-information/results-center/ | E56: Spreadsheets per Segment
B57: Net Debt | D57: https://www.cosan.com.br/en/financial-information/results-center/ | E57: Spreadsheets per Segment
B58: Total shares ex-treasury | D58: https://www.cosan.com.br/en/about-cosan/ownership-breakdown/
B60: Vale's financing structure
B61: 4131 | D61: https://www.cosan.com.br/en/financial-information/results-center/ | E61: Earnings Release
B62: Preferred shares updated redemption value | D62: https://www.cosan.com.br/en/financial-information/results-center/ | E62: Financial Statements: ITR/DFP
B63: Derivatives MTM | D63: https://www.cosan.com.br/en/financial-information/results-center/ | E63: Earnings Release
B64: Vale Marketable Securities | D64: https://www.cosan.com.br/en/financial-information/results-center/ | E64: Financial Statements: ITR/DFP

Sheet Others (hidden)
A1: Market Capitalization | C1: Book Value | E1: Multiple | G1: Book Value | I1: Last Available | K1: Source: | L1: GRÁFICO | M1: GRÁFICO
A2: Target Price | C2: Equity Value | E2: Input | G2: Input | I2: Input | K2: ='Guide - SOTP Indicative Model'!C13 -> Raízen | L2: Raízen | M2: ='Guide - SOTP Indicative Model'!H13 -> 4.839578441e+10
A3: EV/EBITDA Guidance | C3: EV/EBITDA Guidance | K3: ='Guide - SOTP Indicative Model'!C14 -> Rumo | L3: Rumo | M3: ='Guide - SOTP Indicative Model'!H14 -> 1.567495194e+10
K4: ='Guide - SOTP Indicative Model'!C16 -> Compass | L4: Compass | M4: ='Guide - SOTP Indicative Model'!H16 -> 2.798383744e+10
K5: ='Guide - SOTP Indicative Model'!C17 -> Moove | L5: Moove | M5: ='Guide - SOTP Indicative Model'!H17 -> 5581604973
K6: ='Guide - SOTP Indicative Model'!C18 -> Cosan Investimentos | L6: Cosan Investimentos | M6: ='Guide - SOTP Indicative Model'!H18 -> 4600000000
A7: Market Capitalization | C7: Book Value | K7: ='Guide - SOTP Indicative Model'!C15 -> Vale | L7: Vale | M7: ='Guide - SOTP Indicative Model'!H15 -> 1.762394926e+10
A8: EV/EBITDA LTM | C8: Equity Value | K8: ='Guide - SOTP Indicative Model'!C23 -> G&A | L8: G&A | M8: ='Guide - SOTP Indicative Model'!H23 -> -3497973826
C9: EV/EBITDA LTM | K9: ='Guide - SOTP Indicative Model'!C24 -> Net Debt (Corporate) | L9: Net Debt (Corporate) | M9: ='Guide - SOTP Indicative Model'!H24 -> -1.445133211e+10
K10: ='Guide - SOTP Indicative Model'!C28 -> Collar Financing (4131) and Derivatives | L10: Collar Financing (4131) and Derivatives | M10: ='Guide - SOTP Indicative Model'!H28 -> -8316950766
K11: ='Guide - SOTP Indicative Model'!C29 -> Preferred shares updated redemption value² | L11: Preferred shares updated redemption value | M11: ='Guide - SOTP Indicative Model'!H29 -> -8843200000
K12: ='Guide - SOTP Indicative Model'!C37 -> Holding Discount (m = k-l) | L12: Holding Discount | M12: ='Guide - SOTP Indicative Model'!H37 -> -5.27417203e+10
K13: ='Guide - SOTP Indicative Model'!C34 -> CSAN3 Market Value | L13: CSAN3 Market Value | M13: ='Guide - SOTP Indicative Model'!H34 -> 3.200895103e+10
